Cogmind - Beta 15 @@@ ROGUE MODE // 2025.08.08 @ 17:43:57 Player: Tereza Result: Destroyed by D-53 Grenadier with Mini Grenade Launcher Performance ------------- Evolutions (0) 0 Regions Visited (2) 400 Robots Destroyed (26) 130 Value Destroyed (615) 615 Prototype IDs (0) 0 Alien Tech Used (0) 0 Bonus (-32) -32 TOTAL SCORE: 1113 Bonus ------- Friendly Fire -32 Cogmind --------- Core Integrity 0/250 Matter 235/300 Energy 100/100 System Corruption 0% Temperature Cool (0) Movement Treading (240) Ox1 Location -10/Mines Parts ------- > --- POWER (1) -------- (None) > --- PROPULSION (2) --- Light Treads > --- UTILITY (2) ------ High-capacity Storage Unit Visual Processing Unit > --- WEAPON (2) ------- (None) > --- INVENTORY (20) --- Light Nuclear Core Light Nuclear Core Light Treads Light Treads Large Storage Unit Structural Scanner Sensor Array Hacking Suite Assault Rifle Light Assault Rifle Grenade Launcher Mining Claw Peak State ------------ > --- POWER ------------ Ion Engine > --- PROPULSION ------- Light Treads Light Treads > --- UTILITY ---------- Medium Storage Unit Visual Processing Unit > --- WEAPON ----------- Assault Rifle Assault Rifle > --- INVENTORY -------- Ion Engine Light Treads Light Treads Light Treads Light Treads Wheel Compact Wheel Medium Laser Light Assault Rifle Mining Claw [Rating: 9] Favorites ----------- Power Ion Engine Engine Ion Engine Propulsion Light Treads Treads Light Treads Utility Visual Processing Unit Storage High-capacity Storage Unit Processor Visual Processing Unit Weapon Assault Rifle Ballistic Gun Assault Rifle Ballistic Cannon Light Cannon Launcher Grenade Launcher Build | -11 -10 -10 ------- Run | Yrd Mat Min Slots Evolved . | . . . Power . | . . . Propulsion . | . . . Utility . | . . . Weapon . | . . . Parts Attached 19 | 6 11 2 Power 2 | 1 1 . Engine 2 | 1 1 . Core . | . . . Reactor . | . . . Propulsion 5 | 2 3 . Treads 5 | 2 3 . Leg . | . . . Wheel . | . . . Hover . | . . . Flight . | . . . Utility 5 | 1 4 . Device . | . . . Storage 4 | 1 3 . Processor 1 | . 1 . Hackware . | . . . Protection . | . . . Artifact . | . . . Weapon 7 | 2 3 2 Energy Gun . | . . . Energy Cannon . | . . . Ballistic Gun 5 | 2 2 1 Ballistic Cannon 1 | . . 1 Launcher 1 | . 1 . Special Weapon . | . . . Impact Weapon . | . . . Slashing Weapon . | . . . Piercing Weapon . | . . . Special Melee Weapon . | . . . Unidentified Prototypes . | . . . Parts Lost 10 | . 5 5 Power 2 | . 1 1 Propulsion 3 | . 2 1 Utility . | . . . Weapon 5 | . 2 3 Highest Loss Streak 5 | . 4 5 To Critical Strikes . | . . . Average Backups 9 | 2 9 11 Power 1 | . 1 1 Propulsion 3 | . 4 2 Utility 1 | . . 4 Weapon 3 | . 3 4 Tool/Special . | . . . Unused Backups 12 | . 4 8 Power 3 | . 1 2 Propulsion 3 | . 2 1 Utility 3 | . . 3 Weapon 3 | . 1 2 Tool/Special . | . . . Average Slot Usage (%) 96 | . 94 99 Engine 12 | . 12 14 Treads 27 | . 27 27 Storage 14 | . 14 14 Processor 11 | . 10 14 Ballistic Gun 27 | . 27 26 Peak Build Rating 9 | 6 9 9 Average Rating 8 | 4 8 8 On Entrance 5 | . 6 9 Naked Turns . | . . . Heaviest Build 50 | 14 50 47 Greatest Support 40 | 40 40 40 Greatest Overweight (x) 4 | 4 1 1 Average Overweight (x) . | . . 1 Largest Inventory Capacity 20 | 8 20 20 Average Capacity 14 | 7 12 20 Most Carried 13 | 4 13 13 Average Carried 9 | 2 9 11 Final Capacity 20 | 8 20 20 Final Carried 12 | 4 10 12 Class Distribution -------------------- 100% | Mutant Dominant Class ---------------- Mutant | -10/Materials Mutant | -10/Mines Resources | -11 -10 -10 ----------- Run | Yrd Mat Min Matter Collected 655 | 193 396 66 Remotely . | . . . Salvage Created 761 | . 546 215 Parts 51 | . 44 7 Haulers Intercepted 2 | . 2 . Recyclers Shooed 1 | . 1 . Parts Field Recycled . | . . . Retrieved Matter . | . . . Parts Self-Destructed . | . . . Prevented . | . . . Kills | -11 -10 -10 ------- Run | Yrd Mat Min Combat Hostiles Destroyed 22 | . 14 8 Guns 18 | . 14 4 AOE 4 | . . 4 Classes Destroyed 8 | . 6 2 Hauler 2 | . 2 . Recycler 1 | . . 1 Operator 2 | . 2 . Watcher 3 | . 3 . Swarmer 6 | . 6 . Grunt 9 | . 5 4 Subdweller 3 | . 3 . Assembled 4 | . . 4 Best Kill Streak 6 | . 6 5 Combat Bots Only 6 | . 6 4 Max Kills in Single Turn 3 | . 2 3 Gunslinging 1 | . 1 . Exploded 3 | . . 3 Melee . | . . . Uniques/NPCs Destroyed . | . . . Combat | -11 -10 -10 -------- Run | Yrd Mat Min Hostile Shots Fired 117 | . 87 30 Missed 26 | . 17 9 Hits 91 | . 70 21 Melee 1 | . . 1 Projectile 90 | . 70 20 AOE 7 | . . 7 Critical Strikes 3 | . 1 2 Damage Taken 1566 | . 1057 509 Core 251 | . 181 70 Absorbed by Shields . | . . . Core Remaining (%) 100 | 100 . . Volleys Fired 86 | . 66 20 Largest 2 | . 2 2 Hottest 50 | . 40 50 Shots Fired 171 | . 132 39 Gun 166 | . 132 34 Cannon 2 | . . 2 Launcher 3 | . . 3 Special . | . . . Kinetic 168 | . 132 36 Thermal . | . . . Explosive 3 | . . 3 Electromagnetic . | . . . Robot Hit Streak 20 | . 20 7 Robot Miss Streak 5 | . 3 5 Penetration Max . | . . . Secondary Targets 4 | . 4 . Max Gunslinging Chain 1 | . 1 . Shots Hit Robots 126 | . 101 25 Core Hits 63 | . 37 26 Critical Kills . | . . . Critical Parts Destroyed . | . . . Critical Strikes . | . . . Melee Attacks . | . . . Impact . | . . . Slashing . | . . . Piercing . | . . . Sneak Attacks . | . . . Combat Hostiles . | . . . Follow-up Attacks . | . . . Damage Inflicted 1780 | . 1150 630 Guns 1341 | . 1150 191 Cannons 16 | . . 16 Explosions 423 | . . 423 Melee . | . . . Ramming . | . . . Kinetic 1357 | . 1150 207 Thermal . | . . . Explosive 423 | . . 423 Electromagnetic . | . . . Impact . | . . . Slashing . | . . . Piercing . | . . . Highest Corruption . | . . . Average Corruption . | . . . Corruption Purged . | . . . Corruption Blocked . | . . . Overload Shots . | . . . Overflow Damage 23 | . . 23 Projectiles . | . . . Explosions 23 | . . 23 Melee . | . . . Knockbacks 1 | . . 1 Impact . | . . . Kinetic 1 | . . 1 Secondary . | . . . Self-Inflicted Damage 2 | . . 2 Shots 1 | . . 1 Rammed . | . . . Targets Rammed . | . . . Kicked . | . . . Crushed . | . . . Highest Temperature 30 | . 18 30 Average Temperature 8 | . 6 11 Received Heat Transfer 483 | . 315 168 Siege Activations . | . . . Martial Activations . | . . . Shielding Activations . | . . . Robots Disrupted . | . . . Combat Hostiles . | . . . Robots Corrupted . | . . . Combat Hostiles . | . . . Parts Fried . | . . . Impact Corruptions . | . . . Robots Melted . | . . . Combat Hostiles . | . . . Parts Melted . | . . . Heat Transferred . | . . . Parts Sabotaged . | . . . Parts Stolen . | . . . Parts Stripped . | . . . Power Chain Reactions . | . . . Alert | -11 -10 -10 ------- Run | Yrd Mat Min Maximum Alert Level . | . . . Low Security (%) 100 | 100 100 100 Level 1 . | . . . Level 2 . | . . . Level 3 . | . . . Level 4 . | . . . Level 5 . | . . . High Security . | . . . Max Security . | . . . Peak Influence 151 | . 151 50 Initial . | . . . Average 31 | . 40 10 Influence Increases 451 | . 332 119 Destroy 0b10 Robot/C 300 | . 220 80 Destroy 0b10 Robot/NC 40 | . 35 5 Destroy Leader 80 | . 60 20 Successful Hack 15 | . 15 . Destroy Structure 16 | . 2 14 Influence Decreases 451 | . 332 119 Time Decay 352 | . 282 70 Lost Part 99 | . 50 49 Squads Dispatched 3 | . 3 . Investigation 1 | . 1 . Extermination . | . . . Reinforcement 2 | . 2 . Assault . | . . . Garrison . | . . . Intercept . | . . . Searches Triggered . | . . . Construction Impeded . | . . . Haulers Reinforced . | . . . Active Scanning Responses . | . . . Cargo Convoy Interrupts . | . . . Stealth | -11 -10 -10 --------- Run | Yrd Mat Min Distress Signals 2 | . 2 . Communications Jammed . | . . . Distress Signals . | . . . Times Spotted 47 | . 26 21 Peak Tracking Total 16 | . 5 16 Tactical Retreats 3 | . 2 1 Traps | -11 -10 -10 ------- Run | Yrd Mat Min Traps Triggered 2 | . 2 . Indirectly . | . . . Trap Hack Attempts . | . . . Triggered . | . . . Disarmed . | . . . Reprogrammed . | . . . Reused . | . . . Traps Extracted . | . . . Installed . | . . . Triggered . | . . . Machines | -11 -10 -10 ---------- Run | Yrd Mat Min Machines Disabled . | . . . Max in Single Turn . | . . . Machines Repaired . | . . . Machines Dismantled . | . . . Machines Sabotaged . | . . . Overloaded Fab Kills . | . . . Hacking | -11 -10 -10 --------- Run | Yrd Mat Min Machines Accessed 5 | . 5 . Terminals 4 | . 4 . Fabricators . | . . . Repair Stations . | . . . Recycling Units 1 | . 1 . Scanalyzers . | . . . Garrison Access . | . . . Total Hacks 15 | . 15 . Successful 7 | . 7 . Failed 7 | . 7 . Catastrophic . | . . . Database Lockouts 1 | . 1 . Manual 6 | . 6 . Terminals 13 | . 13 . Fabricators . | . . . Repair Stations . | . . . Recycling Units 2 | . 2 . Scanalyzers . | . . . Garrison Access . | . . . Terminal Hacks 4 | . 4 . Robot Analysis 1 | . 1 . Locate Traps 1 | . 1 . Hauler Manifests 1 | . 1 . Zone Layout 1 | . 1 . Fabricator Hacks . | . . . Repair Station Hacks . | . . . Recycling Unit Hacks 2 | . 2 . Report Inventory 1 | . 1 . Retrieve Components 1 | . 1 . Scanalyzer . | . . . Garrison Access Hacks . | . . . Unauthorized Hacks 1 | . 1 . Terminals 1 | . 1 . Botnet 1 | . 1 . Fabricators . | . . . Repair Stations . | . . . Recycling Units . | . . . Scanalyzers . | . . . Garrison Access . | . . . Data Cores Recovered . | . . . Used . | . . . Hacking Detections 4 | . 4 . Full Trace Events 1 | . 1 . Feedback Events . | . . . Feedback Blocked . | . . . Robot Schematics Acquired . | . . . Robots Built . | . . . Authchips . | . . . Time . | . . . Total Robot Build Rating . | . . . Part Schematics Acquired . | . . . Parts Built . | . . . Authchips . | . . . Time . | . . . Total Part Build Rating . | . . . Parts Repaired . | . . . Time . | . . . Parts Recycled . | . . . Recycled Matter . | . . . Retrieved Matter . | . . . Retrieved Components 3 | . 3 . Parts Scanalyzed . | . . . Part Schematics Acquired . | . . . Parts Damaged . | . . . Bothacking | -11 -10 -10 ------------ Run | Yrd Mat Min Used RIF Installer . | . . . Robots Hacked . | . . . Non-combat . | . . . Combat . | . . . Robot Hacks Applied . | . . . Relay Couplers Released . | . . . Fabnet Peak Effective % . | . . . Robots Rewired . | . . . Allies Hacked . | . . . Hacks Repelled . | . . . Allies | -11 -10 -10 -------- Run | Yrd Mat Min Total Allies . | . . . Largest Group . | . . . Highest-Rated Group . | . . . Highest-Rated Ally . | . . . Total Orders . | . . . Ally Attacks . | . . . Total Damage . | . . . Kills . | . . . Allies Corrupted . | . . . Allies Melted . | . . . Intel | -11 -10 -10 ------- Run | Yrd Mat Min Active Infowar (turns) 1326 | . 931 395 Optics 1326 | . 931 395 Robot Analysis Total 1 | . 1 . Derelict Logs Recovered 2 | . . 2 Drone Launches . | . . . Drone Recoveries . | . . . Exploration | -11 -10 -10 ------------- Run | Yrd Mat Min Turns Passed 1660 | 73 1192 395 Spaces Moved 711 | 37 537 137 Core 12 | 12 . . Treads 699 | 25 537 137 Legs . | . . . Wheels . | . . . Hover . | . . . Flight . | . . . Fastest Speed 50 | 50 160 240 Average Speed 185 | 166 173 240 Slowest Speed 250 | 250 240 240 Overloaded Moves . | . . . Propulsion Burnouts . | . . . Robots Hopped . | . . . Potential Cave-ins . | . . . Cave-ins Triggered . | . . . Exploration Rate (%) 44 | 4 96 34 Regions Visited 2 Branch Regions 1 Pre-discovered Areas . | . . . Known Exits Taken . | . . . Unknown Exits Taken 2 | 1 1 . Scrap Searched 1 | . . 1 Spaces Dug . | . . . Terrain Destroyed 16 | . . 16 Melee . | . . . Projectile . | . . . AOE 16 | . . 16 Terrain Rammed . | . . . Walls Destroyed . | . . . Machines Disabled . | . . . Actions | -11 -10 -10 --------- Run | Yrd Mat Min Total 895 | 46 679 170 Wait 54 | . 47 7 Move 709 | 36 536 137 Hop . | . . . Pick Up 20 | 4 13 3 Fast Attach 8 | 6 2 . Attach 5 | . 4 1 Detach . | . . . Swap 7 | . 5 2 Drop 6 | . 6 . Fire 86 | . 66 20 Melee . | . . . Ram . | . . . Kick . | . . . Crush . | . . . Escape Stasis . | . . . Rewire . | . . . Trap . | . . . Miscellaneous . | . . . Route ------- -11/Scrapyard -10/Materials (discovered 5 exits: [*Mat x3] / [*Min x2]) -10/Mines (discovered 1 exit: [*Mat]) History --------- Turn | Location | Event 25 | -11/Scrapyard | Discovered new exit (range 15) 74 | -11/Scrapyard | Entered Materials 106 | -10/Materials | Central database locked down 243 | -10/Materials | Discovered new exit (range 16) 303 | -10/Materials | Build established: Mutant 425 | -10/Materials | Discovered new exit (range 11) 539 | -10/Materials | Discovered new exit (range 5) 760 | -10/Materials | Discovered new exit (range 7) 860 | -10/Materials | Discovered new exit (range 11) 974 | -10/Materials | Derelicts attacked the area 1085 | -10/Materials | Core integrity fell below 50% 1115 | -10/Materials | Lost 4 parts (1p2n1w) 1266 | -10/Materials | Entered Mines 1293 | -10/Mines | Discovered new exit (range 11) 1410 | -10/Mines | Learned Materials emergency access door positions 1413 | -10/Mines | Learned 2 Materials zone layouts 1628 | -10/Mines | Assembled infested the area 1633 | -10/Mines | Assisted by a Guerilla fighting off Assembled 1653 | -10/Mines | Core integrity fell below 20% 1661 | -10/Mines | Destroyed by D-53 Grenadier with Mini Grenade Launcher Last Messages --------------- 01650_ XF-U4I(h) destroyed. 01651_ as-73162 destroyed. 01651_ as-49114 destroyed. 01651_ as-85004 destroyed. 01652_ as-53336 destroyed. 01652_ as-35217 destroyed. 01654_ U-05 Engineer lays Concrete. 01655_ as-45235 destroyed. 01655_ as-48563 destroyed. 01655_ as-80997 destroyed. 01656_ U-05 Engineer lays Concrete. 01656_ D-53 Grenadier knocked back. 01657_ U-05 Engineer lays Concrete. 01657_ as-44895 destroyed. 01657_ Lgt. Treads destroyed. 01657_ Lgt. Cannon destroyed. 01658_ U-05 Engineer lays Concrete. 01659_ U-05 Engineer destroyed. 01659_ Lgt. Assault Rifle destroyed. 01661_ Lgt. Ion Engine destroyed. Map ----- +----------------------------------------------------+ | | | | | | | | | | | | | | | | | | | | | | | | | ?????????????????????????????????????????????????? | | ?????????????????????????????????????????????????? | | ?????????????????????????????????????????????????? | | ?????????????????????????????????????????????????? | | ??????????????#??##??????????????????????????????? | | ???????????#### ## ?????????????????????????????? | | ??????????# ????????????????????????????? | | ?????????? #######?????????????????????? | | ???????? # ##????????????????????? | | ???????? ! ##???????????????????? | | ????????? [% ##?####????#######??? | | ???????? % #? #????? #??? | | ????????# d ###++#?????# #??? | | ?????????????# d @ ## #?????# #??? | | ????????????????# ## #??????# ??? | | ????????????????## ## #???????# #??? | | ?????????????????# ## #????????# #??? | | ?????????????????## ### %! ## ########?# #??? | | ??????????????????##???##%| #?# #??? | | ????????????????????####r t #?# #??? | | ???????????????????## ####### #?# #??? | | ????????????######## ##?????# #?# #??? | | ????????????# ###??????# #?# #??? | | ????????????# t##????????# ### #??? | | ????????????# ### #?????????# #??? | | ?????????????????# ## ##?????????# #####??? | | ?????????????????# #?# ##??????????# #####??? | | ?????????????????## ??# #????#####??# #??? | | ??????????????????# ??# #???## ##?#% #??? | | ??????????????????# ## ##### ########%#??? | | ??????????????????# #?????#=#??? | | ??????????????????## #?????# #??? | | ???????????????????## #### ###?????# #??? | | ????????????????????## ???## ##??????? ??? | | ?????????????????????# ???## #????????" "??? | | ????????????????????? ????# #????????" "??? | | ???????????????????? ????# ##????????" "??? | | ???????????????????### ????# #????????? ??? | +----------------------------------------------------+ Best States ------------- Heat Dissipation 25 Energy Generation 10 Energy Capacity 250 Matter Stores 300 Matter Capacity 300 Sight Range 18 Terrain Scan Density 10 Evasion (%) 40 Recoil Reduction 2 Item Schematics ----------------- None Robot Schematics ------------------ None Fabricated ------------ Nothing Repaired ---------- Nothing Alien Tech Used ----------------- None Achievements -------------- None Challenges ------------ None Game ------ Seed ArmageddonZioniteSpecial Manual? 0 Play Time 00:10:38 Cumulative 181.1 hours Start 2025.08.08 @ 17:35:09 End 2025.08.08 @ 17:43:57 Sessions 1 Manual Loads 0 Difficulty Rogue Special Mode None Game No. 231 Rogue 231 Adventurer 0 Explorer 0 Win Type - Total 3 Types 3/0/0/0/0/0/0/0/0/0 Lore% 70 Gallery% 55 Achievement% 53 Wizard Run 0 Options --------- Layout 1 ASCII 0 Keyboard 1 Movement Numpad Keybinds 0 Fullscreen 2 Font 24/Smallcaps Map View 50x35 Zoom Use 0% Tactical HUD 1 Map Filters NONE Filters NONE Steam 1 RUN: 438628af-0c9d-4976-b599-c509db0887d3